fUST/lending_fUST_20250619
["ID","MTS","AMOUNT","RATE_DAILY","PERIOD"]
[366460934,1750266641048,-559.54657566,0.00022191,6]
[366460937,1750266641061,-460.0,0.00022191,6]
[366460939,1750266641073,-498.6,0.00022191,6]
[366460941,1750266641085,-460.0,0.00022191,6]
[366460943,1750266641097,-460.0,0.00022191,6]
[366460945,1750266641115,-460.0,0.00022191,6]
[366460947,1750266641127,-219.56409778,0.00022191,6]
[366460948,1750266641137,-478.93,0.00022191,6]
[366460949,1750266641148,-460.0,0.00022191,6]
[366460950,1750266641160,-460.0,0.00022191,6]
[366460951,1750266641172,-460.0,0.00022191,6]
[366460952,1750266641183,-460.0,0.00022191,6]
[366460953,1750266641194,-460.0,0.00022191,6]
[366460954,1750266641205,-460.0,0.00022191,6]
[366460955,1750266641216,-460.0,0.00022191,6]
[366460956,1750266641227,-281.06573425,0.00022191,6]
[366460957,1750266641239,-597.19,0.00022191,6]
[366460958,1750266641250,-460.0,0.00022191,6]
[366460959,1750266641262,-460.0,0.00022191,6]
[366460960,1750266641274,-779.05,0.00022191,6]
[366460961,1750266641286,-551.77333873,0.00022191,6]
[366460962,1750266641299,-460.0,0.00022191,6]
[366460963,1750266641310,-460.0,0.00022191,6]
[366460964,1750266641321,-460.0,0.00022191,6]
[366460965,1750266641332,-549.8,0.00022191,6]
[366460966,1750266641343,-460.0,0.00022191,6]
[366460967,1750266641354,-460.0,0.00022191,6]
[366460968,1750266641366,-460.0,0.00022191,6]
[366460969,1750266641377,-460.0,0.00022191,6]
[366460970,1750266641389,-533.63,0.00022191,6]
[366460971,1750266641400,-2534.34,0.00022191,6]
[366460972,1750266641412,-3241.28,0.00022191,6]
[366460973,1750266641423,-460.0,0.00022191,6]
[366460974,1750266641434,-2911.73,0.00022191,6]
[366460975,1750266641445,-460.0,0.00022191,6]
[366460976,1750266641456,-1801.71,0.00022191,6]
[366460977,1750266641467,-460.0,0.00022191,6]
[366460978,1750266641478,-460.0,0.00022191,6]
[366460979,1750266641490,-541.37223141,0.00022191,6]
[366460980,1750266641502,-2490.64,0.00022191,6]
[366460981,1750266641514,-460.0,0.00022191,6]
[366460982,1750266641526,-1155.83,0.00022191,6]
[366460983,1750266641538,-460.0,0.00022191,6]
[366460984,1750266641550,-460.0,0.00022191,6]
[366460985,1750266641561,-768.27,0.00022191,6]
[366460986,1750266641573,-526.75265381,0.00022191,6]
[366460987,1750266641585,-460.0,0.00022191,6]
[366460988,1750266641597,-460.0,0.00022191,6]
[366460989,1750266641608,-460.0,0.00022191,6]
[366460990,1750266641620,-580.86,0.00022191,6]
[366460991,1750266641633,-460.0,0.00022191,6]
[366460992,1750266641644,-1086.9,0.00022191,6]
[366460993,1750266641654,-1468.05,0.00022191,6]
[366460994,1750266641664,-524.04,0.00022191,6]
[366460995,1750266641674,-460.0,0.00022191,6]
[366460996,1750266641684,-460.0,0.00022191,6]
[366460997,1750266641694,-460.0,0.00022191,6]
[366460998,1750266641705,-460.0,0.00022191,6]
[366460999,1750266641716,-460.0,0.00022191,6]
[366461000,1750266641728,-460.0,0.00022191,6]
[366461001,1750266641742,-944.27,0.00022191,6]
[366461002,1750266641754,-460.0,0.00022191,6]
[366461003,1750266641765,-460.0,0.00022191,6]
[366461004,1750266641775,-460.0,0.00022191,6]
[366461005,1750266641786,-460.0,0.00022191,6]
[366461006,1750266641797,-460.0,0.00022191,6]
[366461007,1750266641807,-499.55,0.00022191,6]
[366461008,1750266641819,-743.13,0.00022191,6]
[366461009,1750266641831,-460.0,0.00022191,6]
[366461010,1750266641841,-460.0,0.00022191,6]
[366461011,1750266641852,-460.0,0.00022191,6]
[366461012,1750266641862,-487.26284046,0.00022191,6]
[366461013,1750266641873,-460.0,0.00022191,6]
[366461014,1750266641883,-540.25,0.00022191,6]
[366461015,1750266641893,-502.52,0.00022191,6]
[366461016,1750266641904,-1228.67,0.00022191,6]
[366461017,1750266641914,-460.0,0.00022191,6]
[366461018,1750266641925,-460.0,0.00022191,6]
[366461019,1750266641935,-460.0,0.00022191,6]
[366461020,1750266641946,-460.0,0.00022191,6]
[366461021,1750266641957,-952.44,0.00022191,6]
[366461023,1750266641967,-590.45,0.00022191,6]
[366461026,1750266641978,-460.0,0.00022191,6]
[366461027,1750266641988,-460.0,0.00022191,6]
[366461028,1750266641999,-460.0,0.00022191,6]
[366461029,1750266642009,-5059.16,0.00022191,6]
[366461030,1750266642020,-460.0,0.00022191,6]
[366461031,1750266642030,-460.0,0.00022191,6]
[366461032,1750266642041,-310.99064354,0.00022191,6]
[366461033,1750266642052,-469.87,0.00022191,6]
[366461034,1750266642063,-460.0,0.00022191,6]
[366461035,1750266642074,-2585.2,0.00022191,6]
[366461036,1750266642084,-1213.11,0.00022191,6]
[366461038,1750266642096,-224.70975956,0.00022191,6]
[366461040,1750266642107,-274.86,0.00022191,6]
[366461042,1750266642119,-561.04,0.00022191,6]
[366461044,1750266642129,-460.0,0.00022191,6]
[366461046,1750266642140,-460.0,0.00022191,2]
[366461048,1750266642151,-460.0,0.00022191,6]
[366461050,1750266642162,-980.45935955,0.00022314,7]
[366461052,1750266642172,-2169.71,0.00022324,2]
[366461054,1750266642183,-618.79,0.00022395,3]
[366461055,1750266642194,-980.45935955,0.00022452,7]
[366461056,1750266642205,-460.0,0.00022465,6]
[366461057,1750266642215,-460.0,0.00022465,6]
[366461058,1750266642225,-460.0,0.00022465,6]
[366461059,1750266642236,-468.7,0.00022465,6]
[366461060,1750266642246,-460.0,0.00022465,6]
[366461061,1750266642256,-498.6,0.00022465,6]
[366461062,1750266642266,-290.0,0.00022465,6]
[366461063,1750266642276,-460.0,0.00022465,6]
[366461064,1750266642287,-478.93,0.00022465,6]
[366461065,1750266642297,-460.0,0.00022465,6]
[366461066,1750266642307,-390.63693823,0.00022465,6]
[366461067,1750266642318,-460.0,0.00022465,6]
[366461068,1750266642329,-460.0,0.00022465,6]
[366461069,1750266642339,-460.0,0.00022465,6]
[366461070,1750266642349,-597.19,0.00022465,6]
[366461071,1750266642360,-460.0,0.00022465,6]
[366461072,1750266642371,-460.0,0.00022465,6]
[366461073,1750266642383,-779.05,0.00022465,6]
[366461074,1750266642394,-460.0,0.00022465,6]
[366461075,1750266642405,-460.0,0.00022465,6]
[366461076,1750266642415,-460.0,0.00022465,6]
[366461077,1750266642426,-549.8,0.00022465,6]
[366461078,1750266642437,-460.0,0.00022465,6]
[366461079,1750266642447,-460.0,0.00022465,6]
[366461080,1750266642462,-460.0,0.00022465,6]
[366461081,1750266642473,-460.0,0.00022465,6]
[366461082,1750266642483,-2534.34,0.00022465,6]
[366461083,1750266642495,-533.63,0.00022465,6]
[366461084,1750266642505,-3241.28,0.00022465,6]
[366461085,1750266642516,-460.0,0.00022465,6]
[366461086,1750266642527,-2911.73,0.00022465,6]
[366461087,1750266642538,-460.0,0.00022465,6]
[366461088,1750266642550,-1801.71,0.00022465,6]
[366461089,1750266642561,-460.0,0.00022465,6]
[366461090,1750266642572,-460.0,0.00022465,6]
[366461091,1750266642583,-2490.64,0.00022465,6]
[366461092,1750266642594,-460.0,0.00022465,6]
[366461093,1750266642604,-1155.83,0.00022465,6]
[366461094,1750266642615,-460.0,0.00022465,6]
[366461095,1750266642626,-276.40236497,0.00022465,6]
[366461096,1750266642638,-768.27,0.00022465,6]
[366461097,1750266642648,-460.0,0.00022465,6]
[366461098,1750266642658,-460.0,0.00022465,6]
[366461099,1750266642669,-460.0,0.00022465,6]
[366461100,1750266642679,-580.86,0.00022465,6]
[366461101,1750266642689,-460.0,0.00022465,6]
[366461102,1750266642699,-1086.9,0.00022465,6]
[366461103,1750266642709,-1468.05,0.00022465,6]
[366461104,1750266642720,-524.04,0.00022465,6]
[366461105,1750266642730,-460.0,0.00022465,6]
[366461106,1750266642740,-460.0,0.00022465,6]
[366461107,1750266642751,-460.0,0.00022465,6]
[366461108,1750266642762,-460.0,0.00022465,6]
[366461109,1750266642773,-460.0,0.00022465,6]
[366461110,1750266642782,-944.27,0.00022465,6]
[366461111,1750266642792,-460.0,0.00022465,6]
[366461115,1750266642969,-460.0,0.00022465,6]
[366461116,1750266642985,-460.0,0.00022465,6]
[366461117,1750266642999,-515.49,0.00022465,6]
[366461119,1750266643008,-460.0,0.00022465,6]
[366461120,1750266643017,-499.55,0.00022465,6]
[366461121,1750266643026,-743.13,0.00022465,6]
[366461122,1750266643035,-460.0,0.00022465,6]
[366461123,1750266643045,-460.0,0.00022465,6]
[366461125,1750266643054,-460.0,0.00022465,6]
[366461126,1750266643064,-540.25,0.00022465,6]
[366461127,1750266643073,-502.52,0.00022465,6]
[366461128,1750266643082,-1228.67,0.00022465,6]
[366461129,1750266643092,-460.0,0.00022465,6]
[366461130,1750266643101,-460.0,0.00022465,6]
[366461131,1750266643110,-460.0,0.00022465,6]
[366461132,1750266643119,-460.0,0.00022465,6]
[366461133,1750266643128,-952.44,0.00022465,6]
[366461134,1750266643137,-590.45,0.00022465,6]
[366461135,1750266643146,-460.0,0.00022465,6]
[366461136,1750266643156,-460.0,0.00022465,6]
[366461137,1750266643165,-460.0,0.00022465,6]
[366461138,1750266643174,-5059.16,0.00022465,6]
[366461139,1750266643183,-460.0,0.00022465,6]
[366461140,1750266643193,-469.87,0.00022465,6]
[366461141,1750266643203,-2585.2,0.00022465,6]
[366461142,1750266643213,-1213.11,0.00022465,6]
[366461143,1750266643223,-561.04,0.00022465,6]
[366461144,1750266643232,-460.0,0.00022465,6]
[366461145,1750266643242,-460.0,0.00022465,2]
[366461146,1750266643251,-500.0,0.00022473,2]
[366461147,1750266643261,-500.0,0.00022473,2]
[366461148,1750266643270,-500.0,0.00022473,2]
[366461149,1750266643280,-504.08159758,0.00022473,2]
[366461150,1750266643289,-1000.0,0.00022521,2]
[366461151,1750266643299,-1026.91160882,0.00022521,2]
[366461152,1750266643309,-424.70586748,0.00022521,2]
[366461153,1750266643319,-160.0,0.00022521,2]
[366461154,1750266643328,-835.98428123,0.00022521,2]
[366461155,1750266643337,-160.0,0.00022521,2]
[366461156,1750266643347,-160.0,0.00022521,2]
[366461157,1750266643357,-229.98435572,0.00022521,2]
[366461158,1750266643366,-12542.39314967,0.00022531,2]
[366461159,1750266643376,-980.45935955,0.0002259,7]
[366461160,1750266643386,-207.4,0.00022681,2]
[366461161,1750266643394,-5000.0,0.00022681,2]
[366461162,1750266643404,-500.0,0.00022681,2]
[366461163,1750266643413,-500.0,0.00022681,2]
[366461164,1750266643424,-500.0,0.00022681,2]
[366461165,1750266643433,-500.0,0.00022681,2]
[366461166,1750266643442,-500.0,0.00022681,2]
[366461167,1750266643452,-500.0,0.00022681,2]
[366461168,1750266643465,-500.0,0.00022681,2]
[366461169,1750266643474,-500.0,0.00022681,2]
[366461170,1750266643484,-500.0,0.00022681,2]
[366461171,1750266643493,-500.0,0.00022681,2]
[366461172,1750266643503,-500.0,0.00022681,2]
[366461173,1750266643512,-500.0,0.00022681,2]
[366461174,1750266643521,-500.0,0.00022681,2]
[366461175,1750266643531,-500.0,0.00022681,2]
[366461176,1750266643541,-500.0,0.00022681,2]
[366461177,1750266643550,-500.0,0.00022681,2]
[366461178,1750266643560,-500.0,0.00022681,2]
[366461179,1750266643569,-500.0,0.00022681,2]
[366461180,1750266643579,-500.0,0.00022681,2]
[366461181,1750266643588,-500.0,0.00022681,2]
[366461182,1750266643597,-500.0,0.00022681,2]
[366461183,1750266643607,-500.0,0.00022681,2]
[366461184,1750266643624,-500.0,0.00022681,2]
[366461185,1750266643633,-500.0,0.00022681,2]
[366461186,1750266643642,-500.0,0.00022681,2]
[366461187,1750266643652,-500.0,0.00022681,2]
[366461188,1750266643662,-500.0,0.00022681,2]
[366461189,1750266643671,-500.0,0.00022681,2]
[366461190,1750266643681,-500.0,0.00022681,2]
[366461191,1750266643690,-500.0,0.00022681,2]
[366461192,1750266643700,-500.0,0.00022721,2]
[366461193,1750266643710,-980.45935955,0.00022728,7]
[366461194,1750266643720,-460.0,0.00022739,6]
[366461195,1750266643730,-460.0,0.00022739,6]
[366461196,1750266643739,-460.0,0.00022739,6]
[366461197,1750266643748,-468.7,0.00022739,6]
[366461198,1750266643757,-460.0,0.00022739,6]
[366461199,1750266643766,-498.6,0.00022739,6]
[366461200,1750266643776,-460.0,0.00022739,6]
[366461201,1750266643785,-478.93,0.00022739,6]
[366461202,1750266643795,-460.0,0.00022739,6]
[366461203,1750266643804,-460.0,0.00022739,6]
[366461204,1750266643814,-460.0,0.00022739,6]
[366461205,1750266643823,-597.19,0.00022739,6]
[366461206,1750266643833,-460.0,0.00022739,6]
[366461207,1750266643842,-460.0,0.00022739,6]
[366461208,1750266643851,-779.05,0.00022739,6]
[366461209,1750266643860,-460.0,0.00022739,6]
[366461210,1750266643870,-460.0,0.00022739,6]
[366461211,1750266643879,-460.0,0.00022739,6]
[366461212,1750266643888,-549.8,0.00022739,6]
[366461213,1750266643897,-460.0,0.00022739,6]
[366461214,1750266643907,-460.0,0.00022739,6]
[366461215,1750266643916,-460.0,0.00022739,6]
[366461216,1750266643925,-460.0,0.00022739,6]
[366461217,1750266643934,-2534.34,0.00022739,6]
[366461218,1750266643944,-533.63,0.00022739,6]
[366461219,1750266643953,-3241.28,0.00022739,6]
[366461220,1750266643963,-460.0,0.00022739,6]
[366461221,1750266643972,-2911.73,0.00022739,6]
[366461222,1750266643982,-460.0,0.00022739,6]
[366461223,1750266643991,-1801.71,0.00022739,6]
[366461224,1750266644000,-360.43585024,0.00022739,6]
[366461225,1750266644010,-2490.64,0.00022739,6]
[366461226,1750266644019,-460.0,0.00022739,6]
[366461227,1750266644029,-1155.83,0.00022739,6]
[366461228,1750266644039,-460.0,0.00022739,6]
[366461229,1750266644050,-768.27,0.00022739,6]
[366461230,1750266644061,-460.0,0.00022739,6]
[366461231,1750266644070,-460.0,0.00022739,6]
[366461232,1750266644080,-460.0,0.00022739,6]
[366461233,1750266644090,-580.86,0.00022739,6]
[366461234,1750266644100,-460.0,0.00022739,6]
[366461235,1750266644110,-1086.9,0.00022739,6]
[366461236,1750266644118,-1468.05,0.00022739,6]
[366461237,1750266644128,-524.04,0.00022739,6]
[366461238,1750266644137,-460.0,0.00022739,6]
[366461239,1750266644147,-460.0,0.00022739,6]
[366461240,1750266644156,-460.0,0.00022739,6]
[366461241,1750266644165,-460.0,0.00022739,6]
[366461242,1750266644175,-460.0,0.00022739,6]
[366461243,1750266644184,-944.27,0.00022739,6]
[366461244,1750266644194,-460.0,0.00022739,6]
[366461245,1750266644202,-460.0,0.00022739,6]
[366461246,1750266644212,-460.0,0.00022739,6]
[366461247,1750266644221,-499.55,0.00022739,6]
[366461248,1750266644230,-743.13,0.00022739,6]
[366461249,1750266644239,-460.0,0.00022739,6]
[366461250,1750266644249,-460.0,0.00022739,6]
[366461251,1750266644259,-460.0,0.00022739,6]
[366461252,1750266644269,-540.25,0.00022739,6]
[366461253,1750266644279,-502.52,0.00022739,6]
[366461254,1750266644288,-1228.67,0.00022739,6]
[366461255,1750266644298,-460.0,0.00022739,6]
[366461256,1750266644307,-460.0,0.00022739,6]
[366461257,1750266644317,-460.0,0.00022739,6]
[366461258,1750266644326,-460.0,0.00022739,6]
[366461259,1750266644338,-952.44,0.00022739,6]
[366461260,1750266644347,-590.45,0.00022739,6]
[366461261,1750266644356,-370.0,0.00022739,6]
[366461262,1750266644365,-460.0,0.00022739,6]
[366461263,1750266644374,-460.0,0.00022739,6]
[366461264,1750266644384,-5059.16,0.00022739,6]
[366461265,1750266644393,-272.86733,0.00022739,6]
[366461266,1750266644402,-469.87,0.00022739,6]
[366461268,1750266644412,-2585.2,0.00022739,6]
[366461269,1750266644421,-1213.11,0.00022739,6]
[366461270,1750266644430,-561.04,0.00022739,6]
[366461271,1750266644439,-460.0,0.00022739,6]
[366461272,1750266644448,-460.0,0.00022739,2]
[366461273,1750266644458,-772.71,0.000228,7]
[366461274,1750266644469,-66926.85,0.000228,2]
[366461275,1750266644480,-376.74247123,0.00022853,2]
[366461276,1750266644489,-980.45935955,0.00022866,8]
[366461277,1750266644499,-154.66272973,0.0002287,2]
[366461278,1750266644510,-980.45935955,0.00023003,8]
[366461279,1750266644519,-460.0,0.00023013,6]
[366461280,1750266644528,-460.0,0.00023013,6]
[366461281,1750266644538,-460.0,0.00023013,6]
[366461282,1750266644549,-468.7,0.00023013,6]
[366461283,1750266644559,-460.0,0.00023013,6]
[366461284,1750266644568,-498.6,0.00023013,6]
[366461285,1750266644577,-273.15222702,0.00023013,6]
[366461286,1750266644586,-478.93,0.00023013,6]
[366461287,1750266644595,-460.0,0.00023013,6]
[366461288,1750266644605,-460.0,0.00023013,6]
[366461289,1750266644614,-460.0,0.00023013,6]
[366461290,1750266644624,-597.19,0.00023013,6]
[366461291,1750266644633,-460.0,0.00023013,6]
[366461292,1750266644642,-460.0,0.00023013,6]
[366461293,1750266644651,-779.05,0.00023013,6]
[366461294,1750266644660,-460.0,0.00023013,6]
[366461295,1750266644669,-460.0,0.00023013,6]
[366461296,1750266644679,-460.0,0.00023013,6]
[366461297,1750266644688,-549.8,0.00023013,6]
[366461298,1750266644697,-460.0,0.00023013,6]
[366461299,1750266644706,-460.0,0.00023013,6]
[366461300,1750266644715,-460.0,0.00023013,6]
[366461301,1750266644725,-460.0,0.00023013,6]
[366461302,1750266644734,-2534.34,0.00023013,6]
[366461303,1750266644743,-533.63,0.00023013,6]
[366461304,1750266644753,-3241.28,0.00023013,6]
[366461305,1750266644762,-460.0,0.00023013,6]
[366461306,1750266644771,-2911.73,0.00023013,6]
[366461307,1750266644780,-287.12784455,0.00023013,6]
[366461308,1750266644789,-1801.71,0.00023013,6]
[366461309,1750266644800,-2490.64,0.00023013,6]
[366461310,1750266644810,-460.0,0.00023013,6]
[366461311,1750266644819,-1155.83,0.00023013,6]
[366461312,1750266644828,-460.0,0.00023013,6]
[366461313,1750266644838,-768.27,0.00023013,6]
[366461314,1750266644847,-460.0,0.00023013,6]
[366461315,1750266644856,-460.0,0.00023013,6]
[366461316,1750266644866,-460.0,0.00023013,6]
[366461317,1750266644876,-580.86,0.00023013,6]
[366461318,1750266644885,-1086.9,0.00023013,6]
[366461319,1750266644894,-1468.05,0.00023013,6]
[366461320,1750266644904,-524.04,0.00023013,6]
[366461321,1750266644913,-460.0,0.00023013,6]
[366461322,1750266644923,-460.0,0.00023013,6]
[366461323,1750266644932,-460.0,0.00023013,6]
[366461324,1750266644942,-460.0,0.00023013,6]
[366461325,1750266644951,-460.0,0.00023013,6]
[366461326,1750266644961,-944.27,0.00023013,6]
[366461327,1750266644971,-460.0,0.00023013,6]
[366461328,1750266644981,-460.0,0.00023013,6]
[366461329,1750266644990,-460.0,0.00023013,6]
[366461330,1750266645000,-499.55,0.00023013,6]
[366461331,1750266645009,-743.13,0.00023013,6]
[366461332,1750266645019,-460.0,0.00023013,6]
[366461333,1750266645029,-460.0,0.00023013,6]
[366461334,1750266645038,-224.35342929,0.00023013,6]
[366461335,1750266645049,-540.25,0.00023013,6]
[366461336,1750266645059,-502.52,0.00023013,6]
[366461337,1750266645069,-460.0,0.00023013,6]
[366461338,1750266645078,-1228.67,0.00023013,6]
[366461339,1750266645089,-460.0,0.00023013,6]
[366461340,1750266645098,-460.0,0.00023013,6]
[366461341,1750266645108,-460.0,0.00023013,6]
[366461342,1750266645117,-952.44,0.00023013,6]
[366461343,1750266645126,-590.45,0.00023013,6]
[366461344,1750266645136,-460.0,0.00023013,6]
[366461345,1750266645145,-460.0,0.00023013,6]
[366461346,1750266645154,-5059.16,0.00023013,6]
[366461347,1750266645164,-469.87,0.00023013,6]
[366461348,1750266645174,-2585.2,0.00023013,6]
[366461349,1750266645183,-1213.11,0.00023013,6]
[366461350,1750266645193,-561.04,0.00023013,6]
[366461351,1750266645202,-460.0,0.00023013,6]
[366461352,1750266645211,-460.0,0.00023013,2]
[366461353,1750266645221,-159.0,0.00023014,7]
[366461354,1750266645231,-500.29416083,0.00023014,2]
[366461355,1750266645240,-500.0,0.00023021,2]
[366461356,1750266645250,-1000.0,0.00023021,2]
[366461357,1750266645259,-501.6701965,0.00023021,2]
[366461358,1750266645268,-500.0,0.00023053,2]
[366461359,1750266645278,-1012.73188408,0.00023068,2]
[366461360,1750266645287,-207.0,0.00023121,7]
[366461361,1750266645298,-980.45935955,0.00023141,8]
[366461362,1750266645307,-500.0,0.00023205,2]
[366461363,1750266645316,-420.0,0.00023213,2]
[366461364,1750266645326,-2603.65,0.00023217,2]
[366461365,1750266645336,-5000.0,0.00023229,2]
[366461366,1750266645345,-980.45935955,0.00023279,8]
[366461367,1750266645355,-1147.56,0.00023286,3]
[366461368,1750266645364,-424.70586748,0.00023286,3]
[366461369,1750266645374,-12542.39314967,0.00023286,3]
[366461370,1750266645384,-835.98428123,0.00023286,3]
[366461371,1750266645394,-229.98435572,0.00023286,3]
[366461372,1750266645403,-160.0,0.00023286,2]
[366461373,1750266645413,-160.0,0.00023286,3]
[366461374,1750266645422,-160.0,0.00023286,3]
[366461375,1750266645432,-460.0,0.00023287,6]
[366461376,1750266645441,-460.0,0.00023287,6]
[366461377,1750266645451,-460.0,0.00023287,6]
[366461378,1750266645463,-468.7,0.00023287,6]
[366461379,1750266645472,-460.0,0.00023287,6]
[366461380,1750266645482,-498.6,0.00023287,6]
[366461381,1750266645491,-478.93,0.00023287,6]
[366461382,1750266645500,-456.17050163,0.00023287,6]
[366461383,1750266645510,-460.0,0.00023287,6]
[366461384,1750266645520,-460.0,0.00023287,6]
[366461385,1750266645529,-597.19,0.00023287,6]
[366461386,1750266645540,-460.0,0.00023287,6]
[366461387,1750266645551,-460.0,0.00023287,6]
[366461388,1750266645561,-779.05,0.00023287,6]
[366461389,1750266645570,-460.0,0.00023287,6]
[366461390,1750266645580,-460.0,0.00023287,6]
[366461391,1750266645589,-460.0,0.00023287,6]
[366461392,1750266645598,-549.8,0.00023287,6]
[366461393,1750266645608,-460.0,0.00023287,6]
[366461394,1750266645617,-460.0,0.00023287,6]
[366461395,1750266645626,-460.0,0.00023287,6]
[366461396,1750266645635,-2534.34,0.00023287,6]
[366461397,1750266645645,-533.63,0.00023287,6]
[366461398,1750266645654,-3241.28,0.00023287,6]
[366461399,1750266645663,-460.0,0.00023287,6]
[366461400,1750266645673,-2911.73,0.00023287,6]
[366461401,1750266645682,-1801.71,0.00023287,6]
[366461402,1750266645691,-2490.64,0.00023287,6]
[366461403,1750266645701,-460.0,0.00023287,6]
[366461404,1750266645710,-1155.83,0.00023287,6]
[366461405,1750266645719,-460.0,0.00023287,6]
[366461406,1750266645728,-768.27,0.00023287,6]
[366461407,1750266645738,-460.0,0.00023287,6]
[366461408,1750266645747,-460.0,0.00023287,6]
[366461409,1750266645757,-460.0,0.00023287,6]
[366461410,1750266645766,-580.86,0.00023287,6]
[366461411,1750266645775,-1086.9,0.00023287,6]
[366461412,1750266645784,-1468.05,0.00023287,6]
[366461413,1750266645794,-524.04,0.00023287,6]
[366461414,1750266645804,-460.0,0.00023287,6]
[366461415,1750266645813,-460.0,0.00023287,6]
[366461416,1750266645823,-460.0,0.00023287,6]
[366461417,1750266645832,-460.0,0.00023287,6]
[366461418,1750266645841,-944.27,0.00023287,6]
[366461419,1750266645851,-460.0,0.00023287,6]
[366461420,1750266645861,-460.0,0.00023287,6]
[366461421,1750266645870,-460.0,0.00023287,6]
[366461422,1750266645880,-499.55,0.00023287,6]
[366461423,1750266645889,-743.13,0.00023287,6]
[366461424,1750266645899,-460.0,0.00023287,6]
[366461425,1750266645909,-460.0,0.00023287,6]
[366461426,1750266645926,-540.25,0.00023287,6]
[366461427,1750266645938,-502.52,0.00023287,6]
[366461428,1750266645947,-460.0,0.00023287,6]
[366461429,1750266645956,-1228.67,0.00023287,6]
[366461430,1750266645966,-322.07287699,0.00023287,6]
[366461431,1750266645975,-460.0,0.00023287,6]
[366461432,1750266645985,-460.0,0.00023287,6]
[366461433,1750266645994,-952.44,0.00023287,6]
[366461434,1750266646005,-590.45,0.00023287,6]
[366461435,1750266646014,-460.0,0.00023287,6]
[366461436,1750266646023,-5059.16,0.00023287,6]
[366461437,1750266646033,-469.87,0.00023287,6]
[366461438,1750266646043,-2585.2,0.00023287,6]
[366461439,1750266646053,-1213.11,0.00023287,6]
[366461440,1750266646063,-561.04,0.00023287,6]
[366461441,1750266646072,-460.0,0.00023287,6]
[366461442,1750266646083,-460.0,0.00023287,2]
[366461443,1750266646093,-365.5483814,0.00023288,2]
[366461444,1750266646110,-365.5483814,0.00023288,2]
[366461446,1750266646120,-365.5483814,0.00023288,2]
[366461448,1750266646129,-60775.32,0.000233,7]
[366461449,1750266646138,-980.45935955,0.00023417,9]
[366461450,1750266646147,-4000.0,0.00023466,3]
[366461451,1750266646157,-964.0,0.00023477,2]
[366461452,1750266646166,-2160.0,0.00023477,2]
[366461453,1750266646175,-653.0,0.00023477,2]
[366461457,1750266646314,-176.45292331,0.00023507,2]
[366461459,1750266646331,-14220.19762641,0.0002354,2]
[366461461,1750266646341,-980.45935955,0.00023555,9]
[366461463,1750266646350,-460.0,0.00023561,6]
[366461465,1750266646360,-460.0,0.00023561,6]
[366461467,1750266646370,-460.0,0.00023561,6]
[366461469,1750266646379,-468.7,0.00023561,6]